bitfinex/quotes_ETHUSD_20260313
["timestamp","ask_amount","ask_price","bid_price","bid_amount"]
[1773402267514,2.80681356,2120.7,2120.5,0.36217072]
[1773402267980,1.17880077,2120.8,2120.5,0.36217072]
[1773402268301,2.48145656,2120.9,2120.5,0.36217072]
[1773402268595,4.10979667,2120.8,2120.5,0.36217072]
[1773402268798,1.30166879,2120.8,2120.5,0.36217072]
[1773402269400,2.80903577,2120.7,2120.5,0.36217072]
[1773402269973,1.30266879,2120.9,2120.6,0.36095086]
[1773402270170,2.37260612,2120.8,2120.5,1.18006355]
[1773402270370,1.31238767,2121.0,2120.5,0.0011]
[1773402270574,1.31238767,2121.0,2120.3,0.0011]
[1773402271383,1.31238767,2120.8,2120.3,0.0011]
[1773402272193,2.4912437,2120.7,2120.3,0.0011]
[1773402272500,1.31238767,2120.6,2120.3,0.0011]
[1773402274387,2.49129929,2120.6,2120.5,0.0011]
[1773402275109,1.31238767,2120.6,2120.5,0.0011]
[1773402275482,2.49129929,2120.6,2120.5,0.0011]
[1773402275679,1.31238767,2120.6,2120.5,0.0011]
[1773402275900,1.17889699,2120.7,2120.5,0.0011]
[1773402276201,1.17889699,2120.7,2120.5,0.00247585]
[1773402276388,2.49222398,2120.8,2120.5,0.00247585]
[1773402277104,1.17983631,2120.8,2120.6,0.00159525]
[1773402277696,2.49222398,2120.8,2120.5,0.0011]
[1773402277893,0.001,2120.8,2120.6,0.00180964]
[1773402278092,1.17867343,2121.1,2120.6,0.00180964]
[1773402278299,2.4910611,2121.1,2120.6,0.00180964]
[1773402281002,1.31238767,2121.3,2120.6,0.00180964]
[1773402282283,1.17863372,2121.1,2120.6,0.00180964]
[1773402282501,1.31238767,2121.0,2120.5,0.0011]
[1773402282707,1.31238767,2121.0,2120.5,0.00396186]
[1773402283233,1.31238767,2121.0,2120.6,0.00286186]
[1773402283815,1.17863372,2121.1,2120.6,0.00286186]
[1773402284021,2.49102139,2121.1,2120.6,0.00286186]
[1773402284519,1.31238767,2121.0,2120.6,0.00286186]
[1773402284717,1.31238767,2121.0,2120.5,0.0011]
[1773402285020,1.31238767,2121.3,2120.6,0.00346593]
[1773402285208,2.80417014,2121.2,2120.6,0.00346593]
[1773402285593,4.11655781,2121.2,2120.6,0.00346593]
[1773402285949,1.31238767,2121.2,2120.6,0.00346593]
[1773402286799,2.49097472,2121.2,2120.7,0.00494886]
[1773402287135,1.31338767,2121.1,2120.7,0.0011]
[1773402287608,1.31338767,2121.1,2120.7,0.00513616]
[1773402289291,2.49206695,2121.1,2120.7,0.00513616]
[1773402290627,1.31238767,2121.0,2120.7,0.0011]
[1773402291842,1.1787077,2121.0,2120.7,0.0011]
[1773402292006,1.31238767,2120.9,2120.7,0.0011]
[1773402297619,1.31338767,2121.1,2120.7,0.00705331]
[1773402297823,0.001,2121.1,2120.7,0.00705331]
[1773402298024,1.31238767,2121.0,2120.7,0.0011]
[1773402298950,1.31238767,2121.0,2120.7,0.00721289]
[1773402299660,2.49108928,2121.0,2120.7,0.00721289]
[1773402299837,1.31238767,2121.0,2120.9,0.0011]
[1773402300023,0.001,2121.1,2120.9,0.00738605]
[1773402300625,1.17963562,2121.1,2120.9,0.00738605]
[1773402300936,0.001,2121.1,2120.9,0.00738605]
[1773402301453,2.49088028,2121.4,2121.0,0.00544603]
[1773402301758,1.31288767,2121.6,2121.0,0.00544603]
[1773402302165,1.31288767,2121.7,2121.0,0.00544603]
[1773402303362,1.31288767,2121.3,2120.9,0.0011]
[1773402303742,1.17857816,2121.2,2120.9,0.0011]
[1773402304742,2.49145308,2121.3,2120.9,0.0011]
[1773402306754,1.31288767,2121.2,2120.9,0.0011]
[1773402308628,1.31288767,2121.4,2120.9,0.00775791]
[1773402308830,1.31288767,2121.4,2121.0,0.00665791]
[1773402309043,1.31288767,2121.4,2120.9,0.04824979]
[1773402309354,1.31288767,2121.4,2120.9,0.0549077]
[1773402310758,2.49138401,2121.4,2121.0,0.00694284]
[1773402310928,1.17845802,2121.5,2121.0,0.00694284]
[1773402311137,1.31288767,2121.5,2121.0,0.00694284]
[1773402311474,2.49122383,2121.7,2121.2,0.00694284]
[1773402311645,2.80591003,2121.6,2121.2,0.00694284]
[1773402311846,4.1187977,2121.6,2121.2,0.00694284]
[1773402312044,1.31288767,2121.6,2121.2,0.00694284]
[1773402312641,1.17833616,2121.7,2121.2,0.00694284]
[1773402312862,1.31288767,2121.8,2121.3,1.18574456]
[1773402313052,2.49113505,2121.8,2121.4,0.00722196]
[1773402313248,2.49113505,2121.8,2121.5,1.515]
[1773402313249,1.31288767,2121.8,2121.5,1.515]
[1773402313543,2.49105569,2122.0,2121.6,0.00735227]
[1773402314335,2.49105569,2122.0,2121.5,1.515]
[1773402314336,1.31288767,2121.9,2121.5,1.515]
[1773402314564,1.31288767,2121.7,2121.1,0.00821185]
[1773402315171,2.49124362,2121.6,2121.1,0.00821185]
[1773402315541,1.31288767,2121.5,2121.1,0.00821185]
[1773402315741,1.31288767,2121.5,2121.2,1.515]
[1773402317177,1.31288767,2121.4,2121.2,1.515]
[1773402318954,2.49124451,2121.6,2121.3,0.00619501]
[1773402319543,2.49124451,2121.6,2121.2,2.69357812]
[1773402319978,2.49124451,2121.6,2121.2,1.56214312]
[1773402320346,1.31288767,2121.5,2121.2,1.515]
[1773402322767,1.31288767,2121.5,2121.2,2.69357442]
[1773402322968,1.31288767,2121.5,2121.2,1.52010141]
[1773402323384,1.31288767,2121.5,2121.2,2.69867921]
[1773402323752,1.31288767,2121.5,2120.9,0.0011]
[1773402323753,1.30008467,2121.3,2120.9,0.0011]
[1773402324061,1.30008467,2121.3,2120.9,1.17983434]
[1773402324372,1.17846705,2121.4,2120.9,0.0011]
[1773402324581,2.47855172,2121.4,2120.9,0.0011]
[1773402325173,2.47855336,2121.4,2120.9,0.0011]
[1773402325477,2.47855336,2121.4,2121.3,0.0011]
[1773402325682,1.30008467,2121.4,2121.3,0.0011]
[1773402325870,2.47844395,2121.6,2121.3,0.0011]
[1773402326277,0.001,2121.4,2121.3,0.0011]
[1773402330815,0.001,2121.4,2121.3,0.53352222]
[1773402330989,2.47835274,2121.8,2121.4,0.53142222]
[1773402332191,1.30008467,2121.8,2121.4,0.53142222]
[1773402332368,1.17821924,2121.9,2121.4,0.53142222]
[1773402332694,6.01276609,2122.0,2121.6,0.53177397]
[1773402332695,2.4782571,2122.0,2121.6,0.53177397]
[1773402332997,1.30008467,2121.9,2121.6,0.53177397]
[1773402333184,1.30008467,2121.9,2121.5,1.1784115]
[1773402333694,1.30008467,2122.1,2121.5,0.53194663]
[1773402334561,1.30008467,2121.9,2121.5,0.53194663]
[1773402335698,1.30008467,2121.9,2121.5,1.71034348]
[1773402335888,1.30008467,2121.9,2121.5,0.53194663]
[1773402336689,2.4782033,2122.1,2121.6,0.53247053]
[1773402336891,2.47816647,2122.1,2121.6,0.53247053]
[1773402337095,1.30008467,2122.1,2121.6,0.53247053]
[1773402337300,2.47816473,2122.1,2121.6,0.53247053]
[1773402337592,1.30008467,2122.0,2121.6,0.53247053]
[1773402337798,1.30008467,2122.0,2121.5,1.71104925]
[1773402338172,1.30008467,2122.0,2121.6,0.53264908]
[1773402338566,1.17818935,2121.9,2121.4,0.53281176]
[1773402338794,1.30008467,2121.8,2121.3,0.0011]
[1773402339671,1.30008467,2121.8,2121.3,1.17961505]
[1773402339873,1.30008467,2121.8,2121.3,0.0011]
[1773402340083,1.30108467,2121.8,2121.3,0.0011]
[1773402340269,1.30108467,2121.8,2121.4,0.0011]
[1773402341273,1.30008467,2121.6,2121.4,0.0011]
[1773402343699,2.47849617,2121.5,2121.4,0.0011]
[1773402344607,1.30008467,2121.5,2121.4,0.0011]
[1773402345708,1.1783948,2121.6,2121.4,0.0011]
[1773402346010,2.42885302,2121.6,2121.4,0.0011]
[1773402346502,2.42882054,2121.6,2121.4,0.0011]
[1773402346703,1.17834591,2121.7,2121.4,0.0011]
[1773402346901,1.17834591,2121.7,2121.4,0.53535564]
[1773402347079,2.4297465,2121.8,2121.4,0.53535564]
[1773402348480,2.4297465,2121.8,2121.5,0.58153628]
[1773402348481,0.001,2121.8,2121.5,0.58153628]
[1773402349009,1.17925755,2121.8,2121.5,0.58153628]
[1773402349185,2.42971577,2121.8,2121.4,0.04823868]
[1773402349386,2.42971577,2121.8,2121.4,0.58277883]
[1773402349588,1.25045822,2121.7,2121.4,0.58277883]
[1773402349793,1.25045822,2121.7,2121.4,0.04823868]
[1773402350214,1.25045822,2121.7,2121.4,1.22670143]
[1773402350919,1.25045822,2121.7,2121.4,0.04823868]
[1773402351126,0.001,2121.8,2121.6,0.53496408]
[1773402351583,1.20844872,2121.8,2121.4,1.71466087]
[1773402352196,1.20844872,2121.8,2121.5,0.53510117]
[1773402354311,1.20844872,2121.8,2121.6,0.0011]
[1773402354685,2.38671359,2121.8,2121.6,0.0011]
[1773402355135,1.20744872,2121.7,2121.6,0.0011]
[1773402355990,0.001,2121.8,2121.6,0.53674902]
[1773402356323,1.20744872,2122.2,2121.7,0.53464902]
[1773402356493,1.20744872,2122.2,2121.8,1.516]
[1773402357003,1.20744872,2122.1,2121.6,0.0011]
[1773402358358,1.20744872,2121.9,2121.6,1.5171]
[1773402358518,1.20744872,2121.9,2121.6,0.0011]
[1773402359337,1.20744872,2121.9,2121.4,0.0011]
[1773402360414,1.20744872,2121.7,2121.4,1.5171]
[1773402362644,2.38577098,2121.7,2121.4,1.56423868]
[1773402362834,2.38577098,2121.7,2121.4,1.5171]
[1773402363241,2.38577098,2121.7,2121.4,1.56423868]
[1773402363744,2.38577098,2121.7,2121.4,1.5171]
[1773402364145,1.20744872,2121.6,2121.4,1.5171]
[1773402364317,1.20744872,2121.6,2121.3,0.0011]
[1773402364650,2.38586022,2121.5,2121.3,0.0011]
[1773402365262,1.20744872,2121.4,2121.1,0.0011]
[1773402366428,1.20744872,2121.4,2121.0,1.5161]
[1773402366633,2.38597132,2121.3,2121.0,1.5161]
[1773402367671,2.38583279,2121.6,2121.1,0.58328483]
[1773402367967,1.20744872,2121.5,2121.0,3.2780752]
[1773402368157,1.20744872,2121.5,2121.3,0.0011]
[1773402368730,1.20744872,2121.5,2121.0,2.05223949]
[1773402368731,1.20744872,2121.3,2121.0,2.05223949]
[1773402369052,1.20744872,2121.3,2121.0,1.5161]
[1773402371259,2.38602688,2121.2,2121.0,1.5161]
[1773402373839,1.20744872,2121.1,2120.9,0.0011]
[1773402374944,1.20744872,2121.1,2120.9,1.5141]
[1773402375843,1.20744872,2121.0,2120.7,0.53741563]
[1773402376174,1.20744872,2121.0,2120.4,1.5141]
[1773402376332,1.31893559,2120.8,2120.3,0.0011]
[1773402376653,1.31893559,2120.8,2120.3,0.04826313]
[1773402376865,1.31893559,2120.8,2120.3,1.22729831]
[1773402377180,2.49775216,2120.8,2120.3,1.22729831]
[1773402377632,1.31893559,2120.7,2120.3,1.22729831]
[1773402377828,1.31893559,2120.7,2120.4,1.513]
[1773402378368,2.49760455,2121.1,2120.5,0.04715868]
[1773402378540,1.31893559,2121.0,2120.5,0.04715868]
[1773402379431,2.49764051,2121.0,2120.5,1.22607624]
[1773402380159,1.31893559,2121.0,2120.9,0.0011]
[1773402380342,1.31993559,2121.3,2120.9,0.0011]
[1773402380540,1.31893559,2121.2,2120.6,0.0011]
[1773402380872,1.31893559,2120.8,2120.4,0.0011]
[1773402381536,1.31893559,2120.6,2120.4,0.0011]
[1773402382863,2.49778161,2120.8,2120.4,0.0011]
[1773402383036,2.49778161,2120.8,2120.4,0.01700973]
[1773402383558,1.31893559,2120.7,2120.4,0.01700973]
[1773402385033,1.31893559,2120.7,2120.4,0.0011]
[1773402386071,1.31893559,2120.5,2120.4,0.0011]
[1773402386966,1.31893559,2120.5,2120.4,0.0011]
[1773402387775,2.49783412,2120.7,2120.4,0.0011]
[1773402388264,4.71479344,2121.0,2120.5,0.00174764]
[1773402388265,1.31893559,2120.9,2120.5,0.00174764]
[1773402389565,1.31893559,2120.9,2120.4,0.0011]
[1773402391466,1.31893559,2120.7,2120.4,0.0011]
[1773402393072,1.17880045,2120.8,2120.6,0.0011]
[1773402393254,1.17980045,2120.8,2120.6,0.0011]
[1773402393958,2.49873604,2120.8,2120.6,0.0011]
[1773402394336,1.17980045,2120.8,2120.6,0.0011]
[1773402394542,1.31893559,2120.7,2120.6,0.0011]
[1773402395775,0.001,2120.8,2120.6,0.0011]
[1773402395944,2.49874295,2120.8,2120.6,0.0011]
[1773402396273,1.17980736,2120.8,2120.6,0.0011]
[1773402398569,0.001,2120.8,2120.6,0.0011]
[1773402398765,0.001,2120.8,2120.6,0.00426722]
[1773402399574,1.17980579,2120.8,2120.6,0.00426722]
[1773402399870,2.49874138,2120.8,2120.6,0.0011]
[1773402400543,1.17980579,2120.8,2120.6,0.0011]
[1773402400741,0.001,2120.8,2120.6,0.00447887]
[1773402401145,1.31993559,2120.8,2120.6,0.0011]
[1773402405105,2.49875541,2120.8,2120.6,0.0011]
[1773402406877,1.31893559,2120.7,2120.6,0.0011]
[1773402407291,2.49779162,2120.7,2120.6,0.0011]
[1773402408207,1.17981996,2120.8,2120.6,0.0011]
[1773402408411,1.17981996,2120.8,2120.6,0.00532492]
[1773402408697,2.49875555,2120.8,2120.6,0.0011]
[1773402408901,2.49875413,2120.8,2120.6,0.0011]
[1773402409600,1.31893559,2120.7,2120.5,0.0011]
[1773402409795,1.31893559,2120.7,2120.2,0.0022]
[1773402410012,1.31893559,2120.7,2120.2,0.0011]
[1773402411614,1.3205906,2120.5,2120.2,0.0011]
[1773402413299,1.3205906,2120.4,2120.0,0.0011]
[1773402413503,1.3205906,2120.4,2119.8,0.0011]
[1773402413504,1.3205906,2120.2,2119.8,0.0011]
[1773402415497,1.3205906,2120.0,2119.8,0.0011]
[1773402416183,1.3205906,2120.0,2119.5,0.00176923]
[1773402416388,1.3205906,2120.0,2119.6,0.00176923]
[1773402416980,1.17918966,2120.1,2119.6,0.00176923]
[1773402417906,1.3205906,2120.1,2119.6,0.00176923]
[1773402418303,1.3205906,2120.1,2119.5,2.73470413]
[1773402418502,1.3205906,2120.1,2119.5,1.508]
[1773402418893,1.3205906,2120.1,2119.8,0.0011]
[1773402419284,1.3200406,2120.0,2119.5,1.5091]
[1773402419780,1.3200406,2120.0,2118.5,0.065536]
[1773402419781,1.3200406,2119.6,2118.6,4.72006212]
[1773402419994,1.3200406,2119.6,2118.9,0.00325599]
[1773402421104,1.3200406,2119.2,2118.7,0.00335082]
[1773402421304,1.3200406,2119.2,2118.5,0.00335082]
[1773402421619,1.3200406,2119.6,2118.6,0.00335082]
[1773402421793,1.3200406,2119.4,2118.8,0.00344221]
[1773402421983,1.3200406,2119.4,2118.3,0.00344221]
[1773402422309,1.3200406,2119.4,2118.4,0.00344221]
[1773402422709,1.3200406,2119.4,2118.5,1.498]
[1773402422913,1.3200406,2119.4,2118.5,1.50153393]
[1773402423090,1.3200406,2119.4,2118.7,0.00353393]
[1773402423493,1.3200406,2119.9,2118.7,0.00353393]
[1773402423909,1.3200406,2119.7,2118.8,0.00362323]
[1773402424118,1.3200406,2119.7,2118.9,0.00362323]
[1773402424318,1.3200406,2119.7,2119.0,0.00362323]
[1773402425516,1.3200406,2119.7,2119.1,0.00380806]
[1773402425821,1.3200406,2119.7,2119.2,0.00380806]
[1773402426022,1.3200406,2119.7,2119.2,1.23068611]
[1773402427124,1.3200406,2119.7,2119.2,0.00380806]
[1773402427437,2.49945646,2119.7,2119.2,0.00380806]
[1773402427643,1.3200406,2119.6,2119.2,0.00380806]
[1773402427936,1.3200406,2119.6,2119.1,0.00397676]
[1773402428295,1.3200406,2119.8,2119.1,0.00397676]
[1773402428529,2.4993084,2120.0,2119.3,0.00405848]
[1773402428698,2.4993084,2120.0,2119.4,0.00405848]
[1773402428897,1.3200406,2119.9,2119.2,1.50505848]
[1773402430828,1.3200406,2119.9,2119.4,0.00422481]
[1773402431428,1.3210406,2119.8,2119.4,0.00422481]
[1773402431599,1.3210406,2119.8,2119.3,1.17963478]
[1773402433024,1.3200406,2119.7,2119.3,1.17963478]
[1773402433607,1.3200406,2119.7,2119.2,0.0011]
[1773402433804,1.3200406,2119.6,2119.0,0.0011]
[1773402434018,1.3200406,2119.6,2118.7,1.5021]
[1773402434555,1.3194906,2119.3,2118.3,0.00557097]
[1773402434844,1.3194906,2119.3,2118.3,1.18576135]
[1773402435038,1.3194906,2119.1,2118.3,0.00557097]
[1773402435397,1.3194906,2119.0,2118.1,1.18026734]
[1773402435702,1.3194906,2119.0,2117.9,0.00562501]
[1773402435703,1.3194906,2119.0,2118.0,1.1859792]
[1773402436102,1.3194906,2119.0,2117.9,2.66040707]
[1773402436424,1.3194906,2119.0,2118.0,0.04721435]
[1773402436624,1.3194906,2119.0,2118.0,0.05292231]
[1773402437129,1.3194906,2119.0,2118.0,1.2332759]
[1773402437130,1.3194906,2118.8,2118.0,1.2332759]
[1773402439211,1.3194906,2118.6,2118.0,1.23328027]
[1773402439772,1.3194906,2118.6,2118.0,1.22757231]
[1773402439981,1.3194906,2118.6,2118.0,1.23342349]
[1773402440182,2.49944824,2118.8,2118.1,0.00585118]
[1773402440393,2.49944824,2118.8,2117.9,2.66041451]
[1773402440394,1.3194906,2118.7,2117.9,2.66041451]
[1773402440549,1.3194906,2118.7,2118.1,0.00589082]
[1773402441177,1.3194906,2118.5,2117.9,2.66041451]
[1773402441373,1.3194906,2118.5,2118.0,0.04721435]
[1773402441540,1.3194906,2118.5,2117.9,2.66041451]
[1773402442055,1.3194906,2118.5,2117.9,2.66638269]
[1773402442679,1.3194906,2118.5,2118.0,0.04721435]
[1773402443145,2.499587,2118.5,2118.0,1.22754025]
[1773402443866,1.3194906,2118.5,2118.0,1.22754025]
[1773402444066,2.49957879,2118.5,2118.0,1.23359041]
[1773402444273,1.3194906,2118.4,2118.2,0.0011]
[1773402444949,0.001,2118.5,2118.2,0.0011]
[1773402445155,0.001,2118.5,2118.2,1.18741448]
[1773402445337,0.001,2118.5,2118.2,0.00719167]
[1773402445542,1.3204906,2118.5,2118.2,0.0011]
[1773402446676,1.3199906,2118.8,2118.2,1.18133565]
[1773402447446,1.3199906,2118.6,2118.3,0.04720766]
[1773402447648,1.3199906,2118.8,2118.2,0.0535311]
[1773402448377,1.3199906,2118.8,2118.3,0.00522121]
[1773402448680,2.49984897,2118.9,2118.3,0.00522121]
[1773402448885,1.3199906,2119.1,2118.3,0.00522121]
[1773402449195,1.3199906,2118.9,2118.2,0.0011]
[1773402449351,1.3199906,2118.7,2118.2,0.0011]
[1773402450450,1.3199906,2118.7,2118.2,0.00639554]
[1773402450998,1.3199906,2118.7,2118.2,0.0011]
[1773402451473,2.49998083,2118.7,2118.2,0.0011]
[1773402451663,1.3199906,2118.7,2118.2,0.05367496]
[1773402452251,1.3199906,2118.7,2118.2,0.00646507]
[1773402452971,1.3199906,2118.9,2118.3,0.00538785]
[1773402453761,1.3199906,2119.1,2118.4,0.00542062]
[1773402453966,1.28688943,2119.3,2118.4,1.20651504]
[1773402454167,1.28688943,2119.5,2118.4,1.20651504]
[1773402455759,1.28688943,2119.4,2118.6,1.20651504]
[1773402455961,1.28688943,2119.4,2118.7,2.70751504]
[1773402456350,1.28688943,2119.4,2118.8,1.20651504]
[1773402456977,0.001,2119.3,2118.8,1.20651504]
[1773402457155,1.28688943,2119.2,2118.7,1.501]
[1773402457469,1.28688943,2119.2,2118.7,2.70751504]
[1773402457686,0.001,2119.3,2118.8,1.17991315]
[1773402457993,0.001,2119.3,2118.7,3.88744378]
[1773402458782,0.001,2119.3,2118.8,1.20651504]
[1773402459190,1.28688943,2120.3,2118.8,1.20651504]
[1773402459377,1.28688943,2120.3,2119.0,1.20651504]
[1773402459880,2.46597095,2120.3,2119.2,1.20651504]
[1773402460184,2.46597095,2120.3,2119.1,1.17974611]
[1773402460185,1.28688943,2120.3,2119.4,1.20651504]
[1773402460383,2.46597578,2120.3,2119.4,1.20651504]
[1773402460588,1.28688943,2120.3,2119.4,1.20651504]
[1773402461788,1.28688943,2120.3,2119.5,1.17952347]
[1773402461987,1.28688943,2120.3,2119.6,1.20651504]
[1773402462170,4.71689107,2120.5,2119.6,1.20651504]
[1773402462171,1.28788943,2120.5,2119.6,1.20651504]
[1773402463960,1.28788943,2120.5,2119.8,1.20651504]
[1773402464472,1.28788943,2120.5,2119.9,2.71351504]
[1773402464879,1.28688943,2120.4,2119.9,1.507]
[1773402465558,1.28688943,2120.4,2119.4,4.71815985]
[1773402465760,1.28688943,2120.4,2119.5,1.27832175]
[1773402466013,1.32559831,2120.2,2119.5,2.45783862]
[1773402466191,1.32559831,2120.2,2119.6,1.27832175]
[1773402466971,1.32559831,2120.2,2119.7,1.508]
[1773402467892,1.17915946,2120.2,2119.7,1.508]
[1773402468192,1.32559831,2120.1,2119.7,1.508]
[1773402469389,1.32659831,2120.0,2119.7,1.508]
[1773402476068,1.31667348,2119.9,2119.3,1.2047275]
[1773402476268,1.31667348,2119.7,2119.4,1.51]
[1773402477170,2.49602993,2119.9,2119.4,1.51]
[1773402477372,0.001,2120.0,2119.5,1.25190843]
[1773402477598,2.49692011,2120.0,2119.5,1.25190843]
[1773402477903,1.31667348,2119.9,2119.5,0.04718093]
[1773402478199,1.31667348,2119.9,2119.4,1.51]
[1773402478396,1.17935409,2119.9,2119.4,1.51]
[1773402478602,1.31667348,2119.8,2119.4,1.51]
[1773402479806,1.31667348,2119.8,2119.1,2.3844718]
[1773402479981,1.31667348,2119.8,2119.1,1.17973935]
[1773402480386,1.31667348,2119.7,2118.7,2.38466768]
[1773402480583,1.31667348,2119.5,2118.7,2.38466768]
[1773402481017,1.31667348,2119.5,2118.8,1.511]
[1773402481503,1.31667348,2119.5,2118.8,0.04719652]
[1773402481888,1.31667348,2119.5,2118.8,1.25192402]
[1773402482720,1.31667348,2119.3,2119.1,0.0011]
[1773402483410,1.31667348,2119.3,2118.7,1.511]
[1773402484483,1.31667348,2119.1,2118.7,1.511]
[1773402486583,2.49645416,2119.1,2118.7,1.511]
[1773402486783,1.17978068,2119.1,2118.7,1.511]
[1773402487210,2.49634406,2119.3,2118.7,1.511]
[1773402487419,1.31667348,2119.2,2118.7,1.511]
[1773402488114,1.31667348,2119.2,2118.7,2.69092185]
[1773402490115,1.31667348,2119.2,2118.7,3.89564935]
[1773402490712,1.17963603,2119.3,2118.7,2.7157275]
[1773402490917,1.31667348,2119.2,2118.7,1.511]
[1773402491089,1.31667348,2119.2,2118.6,0.0011]
[1773402492485,1.31667348,2119.2,2118.4,1.5131]
[1773402492690,1.92458218,2119.0,2118.4,1.5131]
[1773402492890,1.31667348,2118.9,2118.4,1.5131]
[1773402494496,1.31667348,2118.9,2118.2,0.04830989]
[1773402494690,1.31667348,2118.9,2118.2,0.0011]
[1773402495018,1.31667348,2118.7,2118.2,0.0011]
[1773402495397,1.31667348,2118.7,2118.5,0.0011]
[1773402495594,1.31667348,2118.7,2118.3,0.0011]
[1773402496030,1.31667348,2118.7,2118.1,0.0011]
[1773402496205,1.31667348,2118.6,2118.1,0.0011]
[1773402496791,1.31667348,2118.4,2118.1,0.0011]
[1773402499115,1.18011972,2118.5,2118.1,0.0011]
[1773402499918,1.31667348,2118.4,2118.1,0.0011]
[1773402500099,1.31667348,2118.4,2118.0,0.0011]
[1773402500416,1.31667348,2118.4,2117.8,1.514]
[1773402501199,1.21116903,2118.2,2117.8,1.514]
[1773402503223,1.1803031,2118.1,2117.8,1.514]
[1773402503805,2.39146202,2118.2,2117.8,1.514]
[1773402504008,2.3912351,2118.6,2117.9,1.29937625]
[1773402504203,2.3912351,2118.6,2117.9,1.34659283]
[1773402504392,2.3912351,2118.6,2117.9,1.29937625]
[1773402504701,1.21116903,2118.5,2117.9,1.29937625]
[1773402505802,1.21116903,2118.6,2117.9,1.29937625]
[1773402506301,1.21116903,2118.8,2117.9,1.29937625]
[1773402507699,1.21116903,2118.8,2118.1,1.29937625]
[1773402507700,1.17996884,2118.7,2118.1,1.29937625]
[1773402508000,0.001,2118.3,2118.1,1.29937625]
[1773402508622,0.001,2118.3,2118.0,0.0011]
[1773402509033,1.21116903,2118.6,2118.0,1.30047625]
[1773402510034,2.39123097,2118.6,2118.1,1.1803031]
[1773402510334,1.21116903,2118.9,2118.2,1.29937625]
[1773402510697,1.18084736,2119.0,2118.2,1.29937625]
[1773402510698,0.001,2119.0,2118.3,1.29937625]
[1773402511829,0.001,2119.0,2118.5,1.29937625]
[1773402512132,0.001,2119.0,2118.7,1.29937625]
[1773402512729,0.001,2119.0,2118.6,1.18002454]
[1773402513228,0.001,2119.0,2118.6,2.47940079]
[1773402514130,1.21216903,2119.0,2118.5,1.18004443]
[1773402514506,1.21216903,2119.0,2118.5,1.18007979]
[1773402515846,0.001,2119.0,2118.5,2.47945604]
[1773402517042,0.001,2119.0,2118.6,1.29937625]
[1773402518229,0.001,2119.0,2118.7,1.517]
[1773402519334,1.21216903,2119.0,2118.7,1.517]
[1773402519739,1.21216903,2119.0,2118.2,1.29937625]
[1773402519920,1.21216903,2119.0,2118.3,1.517]
[1773402520444,1.21116903,2118.9,2118.3,2.69719125]
[1773402520645,1.21116903,2118.9,2118.7,0.0011]
[1773402520950,0.001,2118.8,2118.7,0.0011]
[1773402522132,0.001,2119.0,2118.7,0.0011]
[1773402522865,0.001,2119.0,2118.7,1.30047625]
[1773402523242,2.39071506,2119.5,2118.7,1.30047625]
[1773402524567,2.39071506,2119.5,2118.8,2.4792894]
[1773402524726,1.21116903,2119.7,2119.0,1.29937625]
[1773402526654,2.39061503,2119.7,2119.0,2.47914614]
[1773402526859,1.20001742,2119.6,2119.0,2.47914614]
[1773402527354,1.20001742,2119.6,2118.7,4.72090892]
[1773402527355,1.20001742,2119.6,2118.8,1.17991315]
[1773402527553,1.20001742,2119.6,2118.9,1.52]
[1773402529262,1.20001742,2119.4,2118.9,2.69982208]
[1773402531436,2.37961111,2119.4,2118.9,1.52]
[1773402531944,1.20562081,2119.3,2118.9,1.52]
[1773402532147,1.20562081,2119.3,2118.7,1.5211]
[1773402533637,1.17969044,2119.2,2119.1,0.0011]
[1773402533837,2.38531125,2119.2,2119.1,0.0011]
[1773402534060,2.38631125,2119.2,2119.1,0.0011]
[1773402534380,1.18069044,2119.2,2119.1,0.0011]
[1773402534538,0.001,2119.2,2119.1,0.0011]
[1773402537339,1.20562081,2119.5,2119.0,1.25753716]
[1773402537340,0.0189,2119.1,2119.0,1.25753716]
[1773402537565,5.92329656,2119.7,2119.0,1.25753716]
[1773402537748,1.20562081,2119.7,2119.0,1.25753716]
[1773402538574,2.38506203,2119.7,2119.1,1.17974611]
[1773402538979,1.20562081,2119.6,2119.0,2.43729778]
[1773402539859,1.20562081,2119.6,2118.9,0.0011]
[1773402540570,1.20562081,2119.4,2118.8,1.52]
[1773402540868,1.20562081,2119.4,2118.8,3.95744514]
[1773402541461,1.20562081,2119.4,2118.9,0.04719429]
[1773402541652,1.20562081,2119.4,2118.9,1.30473145]
[1773402542368,2.38511002,2119.6,2118.9,1.30473145]
[1773402542667,1.20562081,2119.4,2118.9,1.17981431]
[1773402543066,1.20562081,2119.4,2118.8,2.69987452]
[1773402543272,1.20562081,2119.4,2118.7,2.43857793]
[1773402543458,1.20562081,2119.4,2118.9,1.519]
[1773402544552,1.20562081,2119.2,2118.9,1.519]
[1773402546381,5.92353319,2119.6,2118.9,4.00356073]
[1773402546569,2.38513351,2119.6,2119.1,0.0011]
[1773402546768,1.1795127,2119.6,2119.1,0.0011]
[1773402547082,1.20562081,2119.5,2119.1,0.0011]
[1773402547279,4.71769951,2119.7,2119.1,0.0011]
[1773402547280,1.17949756,2119.6,2119.1,0.0011]
[1773402547479,2.38511837,2119.6,2119.1,0.0011]
[1773402549476,1.20562081,2119.5,2119.1,0.0011]
[1773402550386,1.17947019,2119.6,2119.1,1.25863716]
[1773402551474,1.20562081,2119.6,2119.1,2.43835596]
[1773402553097,1.20662081,2119.8,2119.2,1.25753716]
[1773402553666,2.38598639,2119.8,2119.3,1.17963478]
[1773402553891,1.20662081,2119.8,2119.4,1.517]
[1773402555795,1.20662081,2119.8,2119.4,2.69652983]
[1773402556887,2.38598679,2119.8,2119.4,2.69652983]
[1773402557092,1.20662081,2119.8,2119.4,2.69652983]
[1773402557901,2.38597807,2119.8,2119.4,2.69652983]
[1773402558069,1.20662081,2119.8,2119.4,2.69652983]
[1773402558270,2.38598055,2119.8,2119.4,2.69652983]
[1773402558571,1.20562081,2119.7,2119.4,2.69657737]
[1773402559498,0.001,2119.6,2119.4,2.69657737]
[1773402562018,0.001,2119.8,2119.5,1.25969704]
[1773402562189,0.001,2120.0,2119.5,1.25969704]
[1773402562686,1.27429394,2120.0,2119.5,1.25969704]
[1773402564708,0.001,2120.0,2119.6,2.43916486]
[1773402566518,1.27429394,2120.0,2119.6,1.25969704]
[1773402566686,1.27429394,2120.0,2119.5,1.17947929]
[1773402566887,1.27329394,2119.9,2119.5,1.17947929]
[1773402567094,1.27329394,2119.9,2119.2,2.4393461]
[1773402567411,1.27329394,2119.9,2119.3,1.516]
[1773402568621,1.27329394,2119.9,2119.3,2.77569704]
[1773402568917,1.27329394,2119.7,2119.3,2.77569704]